Cogmind - Beta 15 @@@ ROGUE MODE // 2025.08.06 @ 16:57:25 Player: Lyla Result: Destroyed by P-60 Hacker with Shock Rifle Performance ------------- Evolutions (2) 1000 Regions Visited (4) 800 Robots Destroyed (37) 185 Value Destroyed (678) 678 Prototype IDs (15) 300 Alien Tech Used (0) 0 Bonus (700) 700 TOTAL SCORE: 3663 Bonus ------- Entered Garrisons 200 Used RIF Installer 500 Cogmind --------- Core Integrity 0/550 Matter 249/300 Energy 73/100 System Corruption 3% Temperature Cool (9) Movement Core (350) Ox6 Location -8/Garrison Parts ------- > --- POWER (1) -------- (None) > --- PROPULSION (4) --- (None) > --- UTILITY (4) ------ Improved Medium Armor Plating Improved Medium Armor Plating > --- WEAPON (2) ------- Chainsword Chainsword > --- INVENTORY (5) ---- Kinecellerator Peak State ------------ > --- POWER ------------ Light Ion Engine Light Nuclear Core > --- PROPULSION ------- Wheel Subdweller Monowheel Subdweller Monowheel Flight Unit Cesium-ion Thruster > --- UTILITY ---------- Sensor Array Improved Signal Interpreter Improved Terrain Scanner Rainbow Chip > --- WEAPON ----------- Light Assault Rifle Light Assault Rifle Heavy Assault Rifle > --- INVENTORY -------- Structural Scanner Visual Processing Unit Light Armor Plating Insulated Plating Light Assault Rifle [Rating: 37] Favorites ----------- Power Subdweller Power Source Engine Subdweller Power Source Power Core Light Nuclear Core Propulsion Subdweller Monowheel Treads Light Treads Leg Aluminum Leg Wheel Subdweller Monowheel Flight Unit Flight Unit Utility Improved Terrain Scanner Device Improved Terrain Scanner Storage Small Storage Unit Processor Rainbow Chip Protection Scrap Shield Weapon Light Assault Rifle Ballistic Gun Light Assault Rifle Ballistic Cannon Battle Cannon Slashing Weapon Chainsword Build | -11 -10 -10 -8 -8 ------- Run | Yrd Mat Sub Mat Gar Slots Evolved 4 | . . . 4 . Power . | . . . . . Propulsion 2 | . . . 2 . Utility 2 | . . . 2 . Weapon . | . . . . . Parts Attached 55 | 9 15 8 16 7 Power 7 | 2 2 1 2 . Engine 5 | 2 1 1 1 . Core 2 | . 1 . 1 . Reactor . | . . . . . Propulsion 21 | 4 5 3 7 2 Treads 2 | 2 . . . . Leg 5 | 2 2 . 1 . Wheel 4 | . . 2 2 . Hover . | . . . . . Flight 10 | . 3 1 4 2 Utility 14 | 1 6 2 3 2 Device 5 | . 5 . . . Storage 3 | 1 . . 2 . Processor 3 | . 1 1 1 . Hackware . | . . . . . Protection 3 | . . 1 . 2 Artifact . | . . . . . Weapon 13 | 2 2 2 4 3 Energy Gun . | . . . . . Energy Cannon . | . . . . . Ballistic Gun 9 | 2 2 1 3 1 Ballistic Cannon 2 | . . 1 1 . Launcher . | . . . . . Special Weapon . | . . . . . Impact Weapon . | . . . . . Slashing Weapon 2 | . . . . 2 Piercing Weapon . | . . . . . Special Melee Weapon . | . . . . . Unidentified Prototypes . | . . . . . Parts Lost 20 | . 3 5 . 12 Power 3 | . 1 1 . 1 Propulsion 9 | . . 3 . 6 Utility 3 | . 1 . . 2 Weapon 5 | . 1 1 . 3 Highest Loss Streak 11 | . 3 5 . 11 To Critical Strikes . | . . . . . Average Backups 3 | 3 4 3 3 3 Power . | . . . . . Propulsion . | 1 1 . . . Utility 2 | . . 2 3 2 Weapon . | 1 . . . . Tool/Special . | . . . . . Unused Backups 12 | . 1 3 5 3 Power . | . . . . . Propulsion 1 | . . . 1 . Utility 10 | . 1 2 4 3 Weapon . | . . . . . Tool/Special 1 | . . 1 . . Average Slot Usage (%) 82 | . 89 80 86 63 Engine 8 | . 8 11 6 . Core 2 | . 4 . 3 5 Leg 4 | . 16 . . . Wheel 10 | . . 15 16 . Flight 10 | . 11 7 9 21 Device 11 | . 14 7 13 11 Storage 2 | . 7 . . 6 Processor 4 | . . 4 9 6 Protection 3 | . . 7 3 . Ballistic Gun 19 | . 24 19 16 10 Ballistic Cannon 3 | . . 7 3 . Peak Build Rating 37 | 6 12 28 37 19 Average Rating 18 | 4 8 19 33 12 On Entrance 12 | . 6 9 28 19 Naked Turns 51 | . . . . 51 Heaviest Build 90 | 14 15 31 90 20 Greatest Support 66 | 40 20 40 66 17 Greatest Overweight (x) 6 | 3 1 2 1 6 Average Overweight (x) . | . . . . . Largest Inventory Capacity 25 | 8 8 5 25 8 Average Capacity 5 | 7 6 5 5 6 Most Carried 7 | 6 7 5 7 5 Average Carried 4 | 3 4 4 4 3 Final Capacity 8 | 8 5 5 8 5 Final Carried 5 | 4 5 5 5 1 Class Distribution -------------------- 24% | Mutant 19% | Scavenger-Mutant 19% | Subdweller-Tank 11% | Subdweller-Mutant 9% | Subdweller-Skirmisher 9% | Scavenger-Skirmisher 6% | Scavenger-Scout Dominant Class ---------------- Mutant | -10/Materials Subdweller-Tank | -10/Subcaves Subdweller-Skirmisher | -8/Materials Mutant | -8/Garrison Resources | -11 -10 -10 -8 -8 ----------- Run | Yrd Mat Sub Mat Gar Matter Collected 1479 | 205 574 218 482 . Remotely 188 | . 188 . . . Salvage Created 1288 | . 782 106 345 55 Parts 90 | . 46 12 23 9 Haulers Intercepted 2 | . 1 . 1 . Recyclers Shooed 4 | . 4 . . . Parts Field Recycled . | . . . . . Retrieved Matter . | . . . . . Parts Self-Destructed 5 | . . 5 . . Prevented . | . . . . . Kills | -11 -10 -10 -8 -8 ------- Run | Yrd Mat Sub Mat Gar Combat Hostiles Destroyed 23 | . 10 2 8 3 Guns 21 | . 10 2 6 3 Cannons 2 | . . . 2 . Classes Destroyed 11 | . 7 2 2 . Worker 1 | . 1 . . . Builder 1 | . . . 1 . Tunneler 2 | . 1 . 1 . Hauler 2 | . 1 . 1 . Recycler 6 | . 5 . 1 . Watcher 2 | . 1 . 1 . Swarmer 13 | . 6 . 4 3 Grunt 4 | . 4 . . . Sentry 4 | . . 1 3 . Hunter 1 | . . . 1 . Subdweller 1 | . . 1 . . Best Kill Streak 11 | . 11 1 3 3 Combat Bots Only 3 | . 3 1 2 3 Max Kills in Single Turn 2 | . 1 1 2 1 Gunslinging 1 | . . . 1 . Exploded . | . . . . . Melee . | . . . . . Uniques/NPCs Destroyed . | . . . . . Combat | -11 -10 -10 -8 -8 -------- Run | Yrd Mat Sub Mat Gar Hostile Shots Fired 296 | . 76 32 45 143 Missed 98 | . 27 9 11 51 Hits 198 | . 49 23 34 92 Projectile 198 | . 49 23 34 92 Critical Strikes 4 | . . . . 4 Damage Taken 2627 | . 524 439 446 1218 Core 733 | . 57 121 41 514 Absorbed by Shields 145 | . . . . 145 Core Remaining (%) 64 | 100 . 28 . . Volleys Fired 149 | . 63 25 43 18 Largest 3 | . 2 3 3 2 Hottest 83 | . 40 83 83 40 Shots Fired 324 | . 115 49 129 31 Gun 297 | . 115 43 108 31 Cannon 27 | . . 6 21 . Launcher . | . . . . . Special . | . . . . . Kinetic 324 | . 115 49 129 31 Thermal . | . . . . . Explosive . | . . . . . Electromagnetic . | . . . . . Robot Hit Streak 10 | . 10 10 7 5 Robot Miss Streak 5 | . 3 5 5 3 Penetration Max . | . . . . . Secondary Targets 4 | . 1 . 2 1 Max Gunslinging Chain 1 | . 1 . 1 1 Shots Hit Robots 197 | . 73 25 77 22 Core Hits 72 | . 31 4 28 9 Critical Kills 2 | . 1 . 1 . Critical Parts Destroyed . | . . . . . Critical Strikes 3 | . 1 . 2 . Destroy 2 | . 1 . 1 . Blast 1 | . . . 1 . Melee Attacks 5 | . . . . 5 Impact . | . . . . . Slashing 5 | . . . . 5 Piercing . | . . . . . Sneak Attacks . | . . . . . Combat Hostiles . | . . . . . Follow-up Attacks 1 | . . . . 1 Damage Inflicted 2287 | . 884 171 929 303 Guns 1947 | . 884 156 720 187 Cannons 224 | . . 15 209 . Explosions . | . . . . . Melee 116 | . . . . 116 Ramming . | . . . . . Kinetic 2171 | . 884 171 929 187 Thermal . | . . . . . Explosive . | . . . . . Electromagnetic . | . . . . . Impact . | . . . . . Slashing 116 | . . . . 116 Piercing . | . . . . . Highest Corruption 3 | . . . . 3 Average Corruption 1 | . . . . 1 Corruption Purged . | . . . . . Corruption Blocked . | . . . . . Overload Shots . | . . . . . Overflow Damage 14 | . . . . 14 Projectiles . | . . . . . Explosions . | . . . . . Melee 14 | . . . . 14 Knockbacks 1 | . . . 1 . Impact . | . . . . . Kinetic 1 | . . . 1 . Secondary . | . . . . . Self-Inflicted Damage . | . . . . . Shots . | . . . . . Rammed . | . . . . . Targets Rammed . | . . . . . Kicked . | . . . . . Crushed . | . . . . . Highest Temperature 254 | . 16 . 254 30 Average Temperature 76 | . 5 . 98 10 Received Heat Transfer 817 | . 234 135 45 403 Siege Activations . | . . . . . Martial Activations . | . . . . . Shielding Activations . | . . . . . Robots Disrupted . | . . . . . Combat Hostiles . | . . . . . Robots Corrupted . | . . . . . Combat Hostiles . | . . . . . Parts Fried . | . . . . . Impact Corruptions . | . . . . . Robots Melted . | . . . . . Combat Hostiles . | . . . . . Parts Melted . | . . . . . Heat Transferred . | . . . . . Parts Sabotaged . | . . . . . Parts Stolen . | . . . . . Parts Stripped . | . . . . . Power Chain Reactions . | . . . . . Alert | -11 -10 -10 -8 -8 ------- Run | Yrd Mat Sub Mat Gar Maximum Alert Level . | . . . . . Low Security (%) 100 | 100 100 . 100 100 Level 1 . | . . . . . Level 2 . | . . . . . Level 3 . | . . . . . Level 4 . | . . . . . Level 5 . | . . . . . High Security . | . . . . . Max Security . | . . . . . Peak Influence 137 | . 137 . 85 94 Initial 44 | . . . . 44 Average 42 | . 55 . 32 50 Influence Increases 823 | . 365 20 298 140 Destroy 0b10 Robot/C 440 | . 200 20 160 60 Destroy 0b10 Robot/NC 70 | . 45 . 25 . Destroy Leader 98 | . 44 . 54 . Successful Hack 26 | . 15 . 11 . Disable Machine 15 | . . . 15 . Anti-Garrison Action 50 | . . . . 50 Destroy Structure 4 | . 1 . 3 . Partial Spotted 15 | . . . . 15 Lose Combat Pursuer 105 | . 60 . 30 15 Influence Decreases 759 | . 278 107 229 145 Entered New Map 68 | . . 43 . 25 Time Decay 541 | . 248 64 229 . Lost Part 150 | . 30 . . 120 Squads Dispatched 1 | . 1 . . . Investigation 1 | . 1 . . . Extermination . | . . . . . Reinforcement . | . . . . . Assault . | . . . . . Garrison . | . . . . . Intercept . | . . . . . Searches Triggered . | . . . . . Construction Impeded . | . . . . . Haulers Reinforced . | . . . . . Active Scanning Responses . | . . . . . Cargo Convoy Interrupts . | . . . . . Stealth | -11 -10 -10 -8 -8 --------- Run | Yrd Mat Sub Mat Gar Distress Signals 1 | . . . . 1 Communications Jammed . | . . . . . Distress Signals . | . . . . . Times Spotted 45 | . 15 3 13 14 Peak Tracking Total 9 | . 5 1 2 9 Tactical Retreats 4 | . 2 . 1 1 Traps | -11 -10 -10 -8 -8 ------- Run | Yrd Mat Sub Mat Gar Traps Triggered 5 | . . . . 5 Indirectly . | . . . . . Trap Hack Attempts . | . . . . . Triggered . | . . . . . Disarmed . | . . . . . Reprogrammed . | . . . . . Reused . | . . . . . Traps Extracted . | . . . . . Installed . | . . . . . Triggered . | . . . . . Machines | -11 -10 -10 -8 -8 ---------- Run | Yrd Mat Sub Mat Gar Machines Disabled 3 | . 1 1 1 . Max in Single Turn 1 | . 1 1 1 . Machines Repaired . | . . . . . Machines Dismantled . | . . . . . Machines Sabotaged . | . . . . . Overloaded Fab Kills . | . . . . . Hacking | -11 -10 -10 -8 -8 --------- Run | Yrd Mat Sub Mat Gar Machines Accessed 11 | . 4 1 5 1 Terminals 8 | . 4 . 3 1 Fabricators . | . . . . . Repair Stations . | . . . . . Recycling Units 1 | . . . 1 . Scanalyzers . | . . . . . Garrison Access 1 | . . . 1 . Total Hacks 38 | . 17 9 10 2 Successful 25 | . 7 9 9 . Failed 13 | . 10 . 1 2 Catastrophic 2 | . 1 . . 1 Database Lockouts . | . . . . . Manual . | . . . . . Terminals 26 | . 17 . 7 2 Fabricators . | . . . . . Repair Stations . | . . . . . Recycling Units 2 | . . . 2 . Scanalyzers . | . . . . . Garrison Access 1 | . . . 1 . Terminal Hacks 22 | . 7 9 6 . Record 11 | . . 8 3 . Robot Analysis 1 | . 1 . . . Prototype ID Bank 2 | . 2 . . . Emergency Access Points 1 | . . . 1 . Dispatch Records 1 | . 1 . . . Maintenance Status 1 | . 1 . . . Investigation Status 1 | . 1 . . . Recall Investigation 1 | . . . 1 . Zone Layout 2 | . 1 . 1 . Proto ID Catalog 1 | . . 1 . . Fabricator Hacks . | . . . . . Repair Station Hacks . | . . . . . Recycling Unit Hacks 2 | . . . 2 . Report Inventory 1 | . . . 1 . Retrieve Components 1 | . . . 1 . Scanalyzer . | . . . . . Garrison Access Hacks 1 | . . . 1 . Unlock Access 1 | . . . 1 . Unauthorized Hacks . | . . . . . Terminals . | . . . . . Fabricators . | . . . . . Repair Stations . | . . . . . Recycling Units . | . . . . . Scanalyzers . | . . . . . Garrison Access . | . . . . . Data Cores Recovered . | . . . . . Used . | . . . . . Hacking Detections 8 | . 4 . 3 1 Full Trace Events 2 | . 1 . . 1 Feedback Events . | . . . . . Feedback Blocked . | . . . . . Robot Schematics Acquired . | . . . . . Robots Built . | . . . . . Authchips . | . . . . . Time . | . . . . . Total Robot Build Rating . | . . . . . Part Schematics Acquired . | . . . . . Parts Built . | . . . . . Authchips . | . . . . . Time . | . . . . . Total Part Build Rating . | . . . . . Parts Repaired . | . . . . . Time . | . . . . . Parts Recycled . | . . . . . Recycled Matter . | . . . . . Retrieved Matter . | . . . . . Retrieved Components 3 | . . . 3 . Parts Scanalyzed . | . . . . . Part Schematics Acquired . | . . . . . Parts Damaged . | . . . . . Bothacking | -11 -10 -10 -8 -8 ------------ Run | Yrd Mat Sub Mat Gar Used RIF Installer 1 | . . . . 1 Robots Hacked . | . . . . . Non-combat . | . . . . . Combat . | . . . . . Robot Hacks Applied . | . . . . . Relay Couplers Released . | . . . . . Fabnet Peak Effective % . | . . . . . Robots Rewired . | . . . . . Allies Hacked . | . . . . . Hacks Repelled . | . . . . . Allies | -11 -10 -10 -8 -8 -------- Run | Yrd Mat Sub Mat Gar Total Allies . | . . . . . Largest Group . | . . . . . Highest-Rated Group . | . . . . . Highest-Rated Ally . | . . . . . Total Orders . | . . . . . Ally Attacks . | . . . . . Total Damage . | . . . . . Kills . | . . . . . Allies Corrupted . | . . . . . Allies Melted . | . . . . . Intel | -11 -10 -10 -8 -8 ------- Run | Yrd Mat Sub Mat Gar Active Infowar (turns) 1318 | . 363 291 547 117 Optics 26 | . 26 . . . Sensors 973 | . 22 289 546 116 Terrain 1317 | . 363 290 547 117 Structural 111 | . 100 . 11 . Robot Analysis Total 1 | . 1 . . . Derelict Logs Recovered 1 | . . 1 . . Drone Launches . | . . . . . Drone Recoveries . | . . . . . Exploration | -11 -10 -10 -8 -8 ------------- Run | Yrd Mat Sub Mat Gar Turns Passed 2596 | 98 678 1071 547 202 Spaces Moved 2375 | 57 586 1067 459 206 Core 94 | 4 . . . 90 Treads 28 | 28 . . . . Legs 213 | 25 188 . . . Wheels 847 | . . 546 301 . Hover . | . . . . . Flight 1193 | . 398 521 158 116 Fastest Speed 29 | 50 37 37 29 29 Average Speed 73 | 138 73 74 77 40 Slowest Speed 350 | 200 120 197 117 350 Overloaded Moves . | . . . . . Propulsion Burnouts . | . . . . . Robots Hopped . | . . . . . Potential Cave-ins . | . . . . . Cave-ins Triggered . | . . . . . Exploration Rate (%) 37 | 6 66 53 30 33 Regions Visited 4 Branch Regions 1 Pre-discovered Areas 1 | . . 1 . . Known Exits Taken 1 | . . . 1 . Unknown Exits Taken 3 | 1 1 1 . . Scrap Searched 3 | . . 3 . . Spaces Dug . | . . . . . Terrain Destroyed 2 | . . . 2 . Melee . | . . . . . Projectile 2 | . . . 2 . AOE . | . . . . . Terrain Rammed . | . . . . . Walls Destroyed . | . . . . . Machines Disabled . | . . . . . Actions | -11 -10 -10 -8 -8 --------- Run | Yrd Mat Sub Mat Gar Total 2972 | 72 722 1306 577 295 Wait 209 | . 14 176 14 5 Move 2370 | 56 585 1066 458 205 Hop . | . . . . . Pick Up 60 | 6 19 12 18 5 Fast Attach 18 | 4 . 5 7 2 Attach 38 | 2 13 9 9 5 Detach 8 | . 4 1 1 2 Swap 20 | 4 11 . 5 . Drop 49 | . 13 11 20 5 Fire 149 | . 63 25 43 18 Melee 4 | . . . . 4 Ram . | . . . . . Kick . | . . . . . Crush . | . . . . . Escape Stasis 44 | . . . . 44 Rewire . | . . . . . Trap . | . . . . . Miscellaneous 3 | . . 1 2 . Route ------- -11/Scrapyard -10/Materials (discovered 4 exits: [*Mat x2] / [*Min] / *Sub) -10/Subcaves -8/Materials -8/Garrison (discovered 1 exit: [*Mat]) History --------- Turn | Location | Event 10 | -11/Scrapyard | Discovered new exit (range 16) 99 | -11/Scrapyard | Entered Materials 313 | -10/Materials | Build established: Mutant 374 | -10/Materials | Discovered new exit (range 15) 504 | -10/Materials | Lost 3 parts (1p1u1w) 566 | -10/Materials | Discovered new exit (range 17) 728 | -10/Materials | Discovered new exit (range 14) 773 | -10/Materials | Discovered new exit (range 6) 777 | -10/Materials | Entered Subcaves 819 | -10/Subcaves | Shifting Twisted Machinery released Riot Gun 819 | -10/Subcaves | Shifting Twisted Machinery released Riot Gun 854 | -10/Subcaves | Build established: Scavenger-Mutant 884 | -10/Subcaves | Learned location of Zion (-7) 884 | -10/Subcaves | Met a Zionite searching for "candidates" 1036 | -10/Subcaves | Core integrity fell below 50% 1078 | -10/Subcaves | Lost 5 parts (1p3n1w) 1127 | -10/Subcaves | Learned Materials trap positions 1261 | -10/Subcaves | Visited 4L-MR0's lab 1281 | -10/Subcaves | Found Rainbow Chip 1283 | -10/Subcaves | Attached Rainbow Chip, gained temporary slots: Power, Propulsion, Utility, Weapon 1649 | -10/Subcaves | Build established: Subdweller-Tank 1828 | -10/Subcaves | Discovered new exit (range 16) 1848 | -10/Subcaves | Entered Materials 1848 | -8/Materials | Evolved 4 slots: Propulsion x2, Utility x2 1849 | -8/Materials | Loaded intel: 34 trap records 2383 | -8/Materials | Identified exit to Garrison 2395 | -8/Materials | Entered Garrison 2401 | -8/Garrison | Triggered checkpoint 2479 | -8/Garrison | Triggered checkpoint 2535 | -8/Garrison | Discovered new exit (range 12) 2540 | -8/Garrison | Attempted to access garrison exit controls, blocked by remote lockdown 2556 | -8/Garrison | Lost 11 parts (1p6n2u2w) 2563 | -8/Garrison | Core integrity fell below 50% 2573 | -8/Garrison | Installed Relay Interface Framework 2579 | -8/Garrison | Core integrity fell below 20% 2597 | -8/Garrison | Destroyed by P-60 Hacker with Shock Rifle Last Messages --------------- tracking data. EXIT=FOUND Attempting to access garrison exit controls... Remote lockdown engaged. Dropped Visual Processing Unit. Dropped Structural Scanner. Dropped Lgt. Armor Plating. Acquired Imp. Medium Armor Plating. Acquired Chainsword. Dropped Sml. Storage Unit. Acquired Kinecellerator. W-25 Informer springs to life. W-25 Informer sends out distress signal. Machine disabled. Initiating installation procedure... Relay Interface Framework installed. Machine disabled. Destroyed Target Analyzer. Chainsword follow-up attack on P-60 Hacker. Critical hit (Burn: +37). Map ----- +----------------------------------------------------+ | ??????????????????###?????#*%#?????????????????# | | ?????????????????? +?????#[[+?????????????????# | | ??????????????????# #?????#*%#?????????????????# | | ??????????????????# #?????#% #?????????????????# | | ??????????????????# #???###^ #?????????????????# | | ?????????????###### #####T# ^#?????????????????# | | ?????????????# ^#?????????????????# | | ?????????????# #?????????????????# | | ?????????????# ## ####### ##?????????????????# | | ?????????????# ## #?????# #??????????????????# | | ?????????????# ## #?????# #??????????????????# | | ?????????????# ## #?????# #??????????????????# | | ?????????????# ## ####### #??????????????????# | | ?????????????# ## # # #??????????????????# | | ?????????????# ##!!! ! #??????????????????# | | ????????????## ## #??????????????????# | | ????????????# ###!! ! # #??????????????????# | | ????????????# #?####### #??????????????????# | | ????????????# < ######### ###????????????????# | | ????????????# ##""" #????????????????# | | ????????????# ##" #????????????????# | | ????????????#########" "#????????????????# | | ????????????????????#" "#????????????????# | | ???????????????????## g """"#????????????????# | | ???????????????????#" gpg######????????????????# | | ???????????????????#" p @"""#?????????????????# | | ???????????????????#" "#?????????????????# | | ???????????????????#""" ""#?????????????????# | | ???????????????????###########?????????????????### | | ?????????????????????????????????????????????????? | | ?????????????????????????????????????????????????? | | ?????????????????????????????????????????????????? | | ?????????????????????????????????????????????????? | | ?????????????????????????????????????????????????? | | ?????????????????????????????????????????????????? | | ?????????????????????????????????????????????????? | | ?????????????????????????????????????????????????? | | ?????????????????????????????????????????????????? | | ?????????????????????????????????????????????????? | | | | | | | | | | | | | | | | | | | | | | | +----------------------------------------------------+ Best States ------------- Heat Dissipation 35 Energy Generation 19 Energy Capacity 250 Matter Stores 300 Matter Capacity 300 Sight Range 18 Robot Scan Range 14 Terrain Scan Range 16 Terrain Scan Density 10 Armor Coverage 800 Evasion (%) 64 Recoil Reduction 2 Item Schematics ----------------- None Robot Schematics ------------------ None Fabricated ------------ Nothing Repaired ---------- Nothing Alien Tech Used ----------------- None Achievements -------------- None Challenges ------------ None Game ------ Seed ServoVisualMount Manual? 0 Play Time 00:54:37 Cumulative 5.8 hours Start 2025.08.06 @ 15:56:27 End 2025.08.06 @ 16:57:25 Sessions 1 Manual Loads 0 Difficulty Rogue Special Mode None Game No. 9 Rogue 9 Adventurer 0 Explorer 0 Win Type - Total 0 Types 0/0/0/0/0/0/0/0/0/0 Lore% 7 Gallery% 9 Achievement% 10 Wizard Run 0 Options --------- Layout 0 ASCII 0 Keyboard 0 Movement Mouse Keybinds 0 Fullscreen 1 Font 18/SmallcapsGlow Map View 76x50 Zoom Use 15% Tactical HUD 0 Map Filters NONE Filters NONE Steam 1 RUN: 99449ccd-3bab-430a-8f2e-6416cf01cc71